fUSD/lending_fUSD_20241210
["ID","MTS","AMOUNT","RATE_DAILY","PERIOD"]
[344808361,1733797846628,-500.0,0.00011099,2]
[344808364,1733797846639,-500.0,0.00011099,2]
[344808366,1733797846649,-500.0,0.00011099,2]
[344808369,1733797846659,-500.0,0.00011099,2]
[344808372,1733797846669,-500.0,0.00011099,2]
[344808375,1733797846678,-4794.57240477,0.000111,2]
[344808378,1733797846691,-4219.81369349,0.000111,2]
[344808386,1733797846764,-500.0,0.00011099,2]
[344808388,1733797846773,-9252.2,0.000111,2]
[344808740,1733798895873,200.0,6.201e-05,2]
[344808752,1733799032356,-451.72001,8.219e-05,2]
[344808753,1733799032372,-139.21999,8.219e-05,2]
[344808754,1733799032382,-150.0,9.686e-05,2]
[344808755,1733799032391,-359.4050125,9.738e-05,2]
[344808757,1733799032610,-363.1549875,9.738e-05,2]
[344808758,1733799032623,-622.28801088,9.812e-05,2]
[344808760,1733799032635,-126.71198912,9.812e-05,2]
[344808762,1733799032645,-250.0,9.823e-05,2]
[344808764,1733799032654,-150.0,0.00010044,2]
[344808765,1733799032664,-150.0,0.0001011,2]
[344808766,1733799032674,-986.47,0.00010126,2]
[344808767,1733799032683,-75.81801088,0.00010126,2]
[344808768,1733799038301,-927.47198912,0.00010126,2]
[344808769,1733799038311,-996.89,0.00010127,2]
[344808770,1733799038321,-1006.97,0.00010129,2]
[344808771,1733799038331,-990.3,0.00010133,2]
[344808772,1733799038341,-984.7,0.0001014,2]
[344808773,1733799038351,-983.41,0.00010155,2]
[344808774,1733799038360,-300.0,0.0001018,2]
[344808775,1733799038370,-1000.0,0.00010181,2]
[344808776,1733799038383,-1014.32,0.00010183,2]
[344808777,1733799038392,-1019.64,0.00010249,2]
[344808778,1733799038402,-1013.18,0.00010326,2]
[344808779,1733799038412,-1008.12,0.00010413,2]
[344808780,1733799038421,-590.94,0.00010458,2]
[344808781,1733799038431,-1018.44,0.00010513,2]
[344808782,1733799038442,-538.874,0.0001055,2]
[344808783,1733799038452,-2082.82331188,0.00010588,2]
[344808784,1733799038462,-1003.34,0.0001063,2]
[344808785,1733799038472,-250.0,0.00010641,2]
[344808786,1733799038481,-1000.0,0.000107,2]
[344808787,1733799038491,-1820.0,0.000107,2]
[344808788,1733799038501,-995.54,0.00010765,2]
[344808789,1733799038510,-200.0,0.00010836,2]
[344808790,1733799038520,-151.081657,0.00010878,2]
[344808791,1733799038530,-983.86,0.00010922,2]
[344808792,1733799038539,-722.56,0.00010955,2]
[344808793,1733799038547,-456.60810853,0.00011073,2]
[344808794,1733799038557,-1001296.49777154,0.0001108,2]
[344808795,1733799038566,-7500.0,0.00011089,2]
[344808796,1733799038575,-1190.2618388,0.0001109,2]
[344808797,1733799038584,-250000.0,0.0001109,2]
[344808798,1733799038594,-499.6160879,0.0001109,2]
[344808800,1733799038603,-9788.45712882,0.0001109,2]
[344808802,1733799038613,-7450.6037726,0.0001109,2]
[344808804,1733799038625,-1049.5366014,0.00011092,2]
[344808806,1733799038635,-440.7647389,0.00011092,2]
[344808808,1733799038645,-6576.5400085,0.00011092,2]
[344808810,1733799038654,-500.0,0.00011098,2]
[344808812,1733799038664,-500.0,0.00011098,2]
[344808814,1733799038673,-557.44,0.00011098,2]
[344808816,1733799038682,-500.0,0.00011098,2]
[344808817,1733799038691,-500.0,0.00011098,2]
[344808818,1733799038700,-500.0,0.00011098,2]
[344808819,1733799038710,-589.39,0.00011098,2]
[344808820,1733799038719,-583.57690114,0.00011098,2]
[344808821,1733799038728,-500.0,0.00011098,2]
[344808822,1733799038737,-1338.28,0.00011098,2]
[344808823,1733799038747,-500.0,0.00011098,2]
[344808824,1733799038756,-524.02,0.00011098,2]
[344808825,1733799038765,-500.0,0.00011098,2]
[344808826,1733799038774,-834.38,0.00011098,2]
[344808827,1733799038783,-500.0,0.00011098,2]
[344808829,1733799038792,-500.0,0.00011098,2]
[344808830,1733799038802,-500.0,0.00011098,2]
[344808831,1733799038812,-500.0,0.00011098,2]
[344808832,1733799038821,-500.0,0.00011098,2]
[344808833,1733799038831,-475.858958,0.00011098,2]
[344808834,1733799038840,-500.0,0.00011098,2]
[344808835,1733799038850,-7500.0,0.00011098,2]
[344808836,1733799038860,-500.0,0.00011098,2]
[344808837,1733799038872,-500.0,0.00011098,2]
[344808838,1733799038882,-500.0,0.00011098,2]
[344808839,1733799038891,-500.0,0.00011098,2]
[344808840,1733799038900,-1287.97,0.00011098,2]
[344808841,1733799038909,-500.0,0.00011098,2]
[344808843,1733799038919,-500.0,0.00011099,2]
[344808845,1733799038928,-184.6487777,0.00011099,2]
[344808847,1733799038938,-500.0,0.00011099,2]
[344808850,1733799038948,-500.0,0.00011099,2]
[344808853,1733799038958,-500.0,0.00011099,2]
[344808856,1733799038967,-500.0,0.00011099,2]
[344808859,1733799038976,-532.65519619,0.00011099,2]
[344808862,1733799038985,-1338.28,0.00011099,2]
[344808865,1733799038995,-1338.28,0.00011099,2]
[344808868,1733799039004,-1338.28,0.00011099,2]
[344808871,1733799039014,-1338.28,0.00011099,2]
[344808874,1733799039023,-1338.28,0.00011099,2]
[344808876,1733799039033,-1338.28,0.00011099,2]
[344808879,1733799039043,-1338.28,0.00011099,2]
[344808882,1733799039052,-1338.28,0.00011099,2]
[344808885,1733799039062,-1338.28,0.00011099,2]
[344808888,1733799039071,-1338.28,0.00011099,2]
[344808891,1733799039079,-1338.28,0.00011099,2]
[344808894,1733799039088,-1338.28,0.00011099,2]
[344808896,1733799039098,-1338.28,0.00011099,2]
[344808897,1733799039110,-1338.28,0.00011099,2]
[344808898,1733799039120,-1338.28,0.00011099,2]
[344808899,1733799039130,-1338.28,0.00011099,2]
[344808900,1733799039139,-1338.28,0.00011099,2]
[344808901,1733799039150,-1338.28,0.00011099,2]
[344808902,1733799039159,-1338.28,0.00011099,2]
[344808903,1733799039168,-1338.28,0.00011099,2]
[344808904,1733799039178,-1338.28,0.00011099,2]
[344808905,1733799039189,-1338.28,0.00011099,2]
[344808906,1733799039198,-1338.45059288,0.00011099,2]
[344808907,1733799039207,-524.02,0.00011099,2]
[344808908,1733799039216,-524.02,0.00011099,2]
[344808909,1733799039225,-524.02,0.00011099,2]
[344808910,1733799039235,-524.02,0.00011099,2]
[344808911,1733799039245,-524.02,0.00011099,2]
[344808912,1733799039255,-524.02,0.00011099,2]
[344808913,1733799039264,-524.02,0.00011099,2]
[344808914,1733799039274,-524.02,0.00011099,2]
[344808915,1733799039283,-524.02,0.00011099,2]
[344808916,1733799039293,-524.02,0.00011099,2]
[344808917,1733799039303,-524.02,0.00011099,2]
[344808918,1733799039311,-524.02,0.00011099,2]
[344808919,1733799039321,-524.02,0.00011099,2]
[344808920,1733799039331,-524.02,0.00011099,2]
[344808921,1733799039342,-524.02,0.00011099,2]
[344808922,1733799039352,-524.02,0.00011099,2]
[344808923,1733799039362,-524.02,0.00011099,2]
[344808924,1733799039373,-524.02,0.00011099,2]
[344808925,1733799039382,-524.02,0.00011099,2]
[344808926,1733799039392,-524.02,0.00011099,2]
[344808927,1733799039401,-524.02,0.00011099,2]
[344808928,1733799039412,-524.02,0.00011099,2]
[344808929,1733799039423,-524.19,0.00011099,2]
[344808930,1733799039433,-504.49081931,0.00011099,2]
[344808931,1733799039443,-834.38,0.00011099,2]
[344808932,1733799039452,-834.38,0.00011099,2]
[344808933,1733799039462,-834.38,0.00011099,2]
[344808934,1733799039471,-834.38,0.00011099,2]
[344808935,1733799039481,-834.38,0.00011099,2]
[344808936,1733799039490,-834.38,0.00011099,2]
[344808937,1733799039499,-834.38,0.00011099,2]
[344808938,1733799039508,-834.38,0.00011099,2]
[344808939,1733799039518,-834.38,0.00011099,2]
[344808940,1733799039528,-834.38,0.00011099,2]
[344808941,1733799039538,-834.38,0.00011099,2]
[344808942,1733799039548,-834.38,0.00011099,2]
[344808943,1733799039557,-834.38,0.00011099,2]
[344808944,1733799039567,-834.38,0.00011099,2]
[344808945,1733799039576,-834.38,0.00011099,2]
[344808946,1733799039586,-834.38,0.00011099,2]
[344808947,1733799039596,-834.38,0.00011099,2]
[344808948,1733799039605,-834.38,0.00011099,2]
[344808949,1733799039615,-834.38,0.00011099,2]
[344808950,1733799039628,-834.38,0.00011099,2]
[344808951,1733799039639,-834.38,0.00011099,2]
[344808952,1733799039648,-834.38,0.00011099,2]
[344808953,1733799039658,-834.43070023,0.00011099,2]
[344808954,1733799039668,-500.0,0.00011099,2]
[344808955,1733799039677,-500.0,0.00011099,2]
[344808956,1733799039687,-500.0,0.00011099,2]
[344808957,1733799039697,-500.0,0.00011099,2]
[344808958,1733799039707,-500.0,0.00011099,2]
[344808959,1733799039717,-500.0,0.00011099,2]
[344808960,1733799039727,-500.0,0.00011099,2]
[344808961,1733799039737,-500.0,0.00011099,2]
[344808962,1733799039747,-500.0,0.00011099,2]
[344808963,1733799039756,-500.0,0.00011099,2]
[344808964,1733799039766,-500.0,0.00011099,2]
[344808965,1733799039776,-500.0,0.00011099,2]
[344808966,1733799039785,-500.0,0.00011099,2]
[344808967,1733799039795,-302.15,0.00011099,2]
[344808968,1733799039804,-500.0,0.00011099,2]
[344808969,1733799039815,-500.0,0.00011099,2]
[344808970,1733799039825,-500.0,0.00011099,2]
[344808971,1733799039835,-244.87,0.00011099,2]
[344808972,1733799039845,-500.0,0.00011099,2]
[344808973,1733799039855,-500.0,0.00011099,2]
[344808974,1733799039865,-166.52228894,0.00011099,2]
[344808975,1733799039878,-500.0,0.00011099,2]
[344808976,1733799039888,-500.0,0.00011099,2]
[344808977,1733799039897,-500.0,0.00011099,2]
[344808978,1733799039906,-500.0,0.00011099,2]
[344808979,1733799039916,-500.0,0.00011099,2]
[344808980,1733799039926,-500.0,0.00011099,2]
[344808981,1733799039935,-409.62,0.00011099,2]
[344808982,1733799039945,-500.0,0.00011099,2]
[344808983,1733799039956,-500.0,0.00011099,2]
[344808984,1733799039966,-500.0,0.00011099,2]
[344808985,1733799039975,-500.0,0.00011099,2]
[344808986,1733799039985,-500.0,0.00011099,2]
[344808987,1733799039995,-500.0,0.00011099,2]
[344808988,1733799040004,-500.0,0.00011099,2]
[344808989,1733799040014,-500.0,0.00011099,2]
[344808990,1733799040023,-500.0,0.00011099,2]
[344808991,1733799040033,-500.0,0.00011099,2]
[344808992,1733799040042,-500.0,0.00011099,2]
[344808993,1733799040052,-500.0,0.00011099,2]
[344808994,1733799040062,-500.0,0.00011099,2]
[344808995,1733799040071,-500.0,0.00011099,2]
[344808996,1733799040081,-500.0,0.00011099,2]
[344808997,1733799040090,-500.0,0.00011099,2]
[344808998,1733799040101,-500.0,0.00011099,2]
[344808999,1733799040114,-500.0,0.00011099,2]
[344809000,1733799040126,-500.0,0.00011099,2]
[344809001,1733799040135,-500.0,0.00011099,2]
[344809002,1733799040146,-243.55330992,0.00011099,2]
[344809003,1733799040155,-7500.0,0.00011099,2]
[344809004,1733799040165,-7500.0,0.00011099,2]
[344809005,1733799040175,-7500.0,0.00011099,2]
[344809006,1733799040185,-7500.0,0.00011099,2]
[344809007,1733799040195,-7500.0,0.00011099,2]
[344809008,1733799040205,-7500.0,0.00011099,2]
[344809009,1733799040216,-7500.0,0.00011099,2]
[344809010,1733799040225,-7500.0,0.00011099,2]
[344809011,1733799040235,-7500.0,0.00011099,2]
[344809012,1733799040244,-7500.0,0.00011099,2]
[344809013,1733799040254,-7500.0,0.00011099,2]
[344809014,1733799040264,-7500.0,0.00011099,2]
[344809015,1733799040273,-7500.0,0.00011099,2]
[344809016,1733799040283,-7500.0,0.00011099,2]
[344809017,1733799040293,-7500.0,0.00011099,2]
[344809019,1733799040303,-7500.0,0.00011099,2]
[344809020,1733799040312,-7500.0,0.00011099,2]
[344809021,1733799040321,-7500.0,0.00011099,2]
[344809022,1733799040330,-7500.0,0.00011099,2]
[344809023,1733799040339,-2828.23504144,0.00011099,2]
[344809024,1733799040349,-500.0,0.00011099,2]
[344809025,1733799040358,-500.0,0.00011099,2]
[344809026,1733799040367,-500.0,0.00011099,2]
[344809027,1733799040379,-500.0,0.00011099,2]
[344809028,1733799040388,-500.0,0.00011099,2]
[344809029,1733799040397,-500.0,0.00011099,2]
[344809030,1733799040406,-500.0,0.00011099,2]
[344809031,1733799040415,-345.71,0.00011099,2]
[344809032,1733799040423,-500.0,0.00011099,2]
[344809033,1733799040433,-500.0,0.00011099,2]
[344809034,1733799040441,-500.0,0.00011099,2]
[344809035,1733799040451,-500.0,0.00011099,2]
[344809036,1733799040462,-500.0,0.00011099,2]
[344809037,1733799040472,-500.0,0.00011099,2]
[344809038,1733799040482,-500.0,0.00011099,2]
[344809039,1733799040491,-500.0,0.00011099,2]
[344809040,1733799040501,-500.0,0.00011099,2]
[344809041,1733799040510,-500.0,0.00011099,2]
[344809042,1733799040519,-508.56,0.00011099,2]
[344809043,1733799040529,-500.0,0.00011099,2]
[344809044,1733799040539,-500.0,0.00011099,2]
[344809045,1733799040548,-500.0,0.00011099,2]
[344809046,1733799040558,-500.0,0.00011099,2]
[344809047,1733799040567,-500.0,0.00011099,2]
[344809048,1733799040576,-516.61,0.00011099,2]
[344809049,1733799040585,-1287.97,0.00011099,2]
[344809050,1733799040595,-1287.97,0.00011099,2]
[344809051,1733799040604,-1287.97,0.00011099,2]
[344809052,1733799040614,-1287.97,0.00011099,2]
[344809053,1733799040627,-1287.97,0.00011099,2]
[344809054,1733799040637,-1287.97,0.00011099,2]
[344809055,1733799040647,-1287.97,0.00011099,2]
[344809056,1733799040656,-1287.97,0.00011099,2]
[344809058,1733799040666,-1287.97,0.00011099,2]
[344809059,1733799040675,-1287.97,0.00011099,2]
[344809061,1733799040684,-1287.97,0.00011099,2]
[344809062,1733799040694,-1287.97,0.00011099,2]
[344809063,1733799040703,-1287.97,0.00011099,2]
[344809064,1733799040713,-1287.97,0.00011099,2]
[344809065,1733799040723,-1287.97,0.00011099,2]
[344809066,1733799040733,-1287.97,0.00011099,2]
[344809067,1733799040742,-1287.97,0.00011099,2]
[344809068,1733799040752,-1287.97,0.00011099,2]
[344809069,1733799040762,-1287.97,0.00011099,2]
[344809070,1733799040771,-1287.97,0.00011099,2]
[344809071,1733799040781,-1287.97,0.00011099,2]
[344809072,1733799040791,-1287.97,0.00011099,2]
[344809073,1733799040800,-1288.13,0.00011099,2]
[344809074,1733799040810,-500.0,0.00011099,2]
[344809075,1733799040819,-500.0,0.00011099,2]
[344809076,1733799040830,-500.0,0.00011099,2]
[344809077,1733799040840,-500.0,0.00011099,2]
[344809078,1733799040850,-1074.0,0.00011099,2]
[344809079,1733799040860,-4208007.52546754,0.000111,2]
[344809080,1733799040869,-145960.0340735,0.000111,2]
[344809081,1733799040880,-19383589.05964602,0.000111,2]
[344809082,1733799040896,-701.63279028,0.000111,2]
[344809083,1733799040919,-500.0,0.00011099,2]
[344809084,1733799040929,-48572.50572105,0.000111,2]
[344809085,1733799041046,-276.72193755,0.00011099,2]
[344809086,1733799041059,-223.27806245,0.00011099,2]
[344809087,1733799041068,-34.33640963,0.00011099,2]
[344809088,1733799041080,-377.1469207,0.00011099,2]
[344809089,1733799041093,-88.51666967,0.00011099,2]
[344809090,1733799041103,-500.0,0.00011099,2]
[344809091,1733799041116,-500.0,0.00011099,2]
[344809092,1733799041128,-34.5290181,0.00011099,2]
[344809093,1733799041140,-465.4709819,0.00011099,2]
[344809094,1733799041151,-340.86901819,0.00011099,2]
[344809095,1733799043384,-159.13098181,0.00011099,2]
[344809097,1733799043395,-500.0,0.00011099,2]
[344809099,1733799043404,-500.0,0.00011099,2]
[344809101,1733799043413,-358.7,0.00011099,2]
[344809102,1733799043423,-13257.04112481,0.000111,2]
[344809105,1733799043695,-1188.16667378,0.000111,2]
[344809106,1733799043903,-20042.725,0.000111,2]
[344809107,1733799044034,-4840.18604103,0.000111,2]
[344809306,1733799046301,-826.0,0.0001108,2]
[344809307,1733799046311,-1934.00000352,0.000111,2]
[344809311,1733799046323,-3481.7317743,0.000111,2]
[344809315,1733799046334,-6935.98630639,0.000111,2]
[344809366,1733799046624,-3269.25002,0.000111,2]
[344809367,1733799046638,-98040.11953875,0.000111,2]
[344809507,1733799786977,-3812.57925979,0.00013,15]
[344809512,1733800232306,-498.87222179,9.456e-05,2]
[344809527,1733800232571,-77.24777821,9.456e-05,2]
[344809528,1733800232581,-522.75222179,0.00010335,2]
[344809529,1733800232592,-14.45218536,0.00010335,2]
[344809530,1733800232602,-504.48781464,0.00010435,2]
[344809531,1733800232622,-375.839991,0.00010435,2]
[344809537,1733800238489,-127.79219436,0.00010435,2]
[344809538,1733800238499,-502.0,0.00010438,2]
[344809539,1733800238508,-152.76780555,0.0001055,2]
[344809541,1733800238521,-363.72719445,0.0001055,2]
[344809543,1733800238531,-150.0,0.00010654,2]
[344809545,1733800238540,-154.87504741,0.0001099,2]
[344809546,1733800238552,-862.24495259,0.0001099,2]
[344809547,1733800238561,-994.99,0.0001099,2]
[344809548,1733800238570,-995.88,0.0001099,2]
[344809549,1733800238580,-994.24,0.0001099,2]
[344809550,1733800238589,-984.34,0.0001099,2]
[344809551,1733800238599,-986.03,0.0001099,2]
[344809552,1733800238608,-992.02,0.0001099,2]
[344809553,1733800238620,-989.89,0.0001099,2]
[344809554,1733800238629,-980.74,0.0001099,2]
[344809555,1733800238638,-983.52,0.0001099,2]
[344809556,1733800238647,-980.99,0.0001099,2]
[344809557,1733800238657,-997.8,0.0001099,2]
[344809558,1733800238667,-1002.84,0.0001099,2]
[344809559,1733800238676,-986.68,0.0001099,2]
[344809560,1733800238686,-983.63,0.0001099,2]
[344809561,1733800238695,-994.68,0.0001099,2]
[344809562,1733800238704,-1009.58,0.0001099,2]
[344809563,1733800238714,-983.59,0.0001099,2]
[344809564,1733800238723,-999.72,0.0001099,2]
[344809565,1733800238732,-988.84180725,0.0001099,2]
[344809566,1733800238784,-7.87819275,0.0001099,2]
[344809567,1733800238794,-1010.53,0.0001099,2]
[344809568,1733800238803,-350.12568664,0.0001099,2]
[344809569,1733800238814,-401.03313773,0.0001099,2]
[344809570,1733800238826,-252.58117563,0.0001099,2]
[344809571,1733800238835,-208.19592463,0.0001099,2]
[344809573,1733800239079,-794.23407537,0.0001099,2]
[344809575,1733800239089,-1352.167,0.00011089,2]
[344809577,1733800239099,-500.0,0.00011089,2]
[344809579,1733800239109,-282.80826781,0.00011089,2]
[344809580,1733800239119,-500.0,0.00011089,2]
[344809583,1733800239128,-500.0,0.00011089,2]
[344809584,1733800239139,-500.0,0.00011089,2]
[344809586,1733800239148,-559.95,0.00011089,2]
[344809588,1733800239158,-1006.74,0.00011093,2]
[344809591,1733800239167,-988.26,0.00011095,2]
[344809594,1733800239177,-150.0,0.00011098,3]
[344809597,1733800239186,-150.0,0.00011098,2]
[344809600,1733800239195,-500.0,0.00011098,2]
[344809602,1733800239205,-500.0,0.00011098,2]
[344809604,1733800239214,-500.0,0.00011098,2]
[344809606,1733800239223,-500.0,0.00011098,2]
[344809608,1733800239233,-1047.05,0.00011098,2]
[344809610,1733800239242,-500.0,0.00011098,2]
[344809612,1733800239251,-500.0,0.00011098,2]
[344809614,1733800239260,-500.0,0.00011098,2]
[344809616,1733800239269,-500.0,0.00011098,2]
[344809618,1733800239278,-500.0,0.00011098,2]
[344809620,1733800239287,-500.0,0.00011098,2]
[344809622,1733800239297,-500.0,0.00011098,2]
[344809624,1733800239306,-500.0,0.00011098,2]
[344809626,1733800239315,-500.0,0.00011098,2]
[344809628,1733800239324,-500.0,0.00011098,2]
[344809630,1733800239334,-500.0,0.00011098,2]
[344809632,1733800239344,-712.07,0.00011098,2]
[344809634,1733800239354,-500.0,0.00011098,2]
[344809636,1733800239366,-640.1,0.00011098,2]
[344809638,1733800239376,-500.0,0.00011098,2]
[344809640,1733800239386,-500.0,0.00011098,2]
[344809642,1733800239397,-7500.0,0.00011098,2]
[344809644,1733800239406,-7500.0,0.00011098,2]
[344809646,1733800239416,-376.41,0.00011098,2]
[344809648,1733800239425,-500.0,0.00011098,2]
[344809650,1733800239434,-500.0,0.00011098,2]
[344809652,1733800239444,-500.0,0.00011098,2]
[344809654,1733800239459,-876.73,0.00011098,2]
[344809656,1733800239469,-500.0,0.00011098,2]
[344809658,1733800239478,-500.0,0.00011098,2]
[344809660,1733800239489,-500.0,0.00011098,2]
[344809662,1733800239499,-500.0,0.00011098,2]
[344809664,1733800239508,-500.0,0.00011098,2]
[344809666,1733800239518,-500.0,0.00011098,2]
[344809668,1733800239531,-995.5,0.00011099,2]
[344809670,1733800239541,-3513.00758943,0.00011099,2]
[344809672,1733800239551,-1006.607,0.00011099,2]
[344809674,1733800239561,-500.0,0.00011099,2]
[344809676,1733800239570,-500.0,0.00011099,2]
[344809678,1733800239580,-500.0,0.00011099,2]
[344809680,1733800239589,-500.0,0.00011099,2]
[344809682,1733800239598,-508.32525105,0.00011099,2]
[344809684,1733800239607,-500.0,0.00011099,2]
[344809686,1733800239623,-500.0,0.00011099,2]
[344809688,1733800239633,-500.0,0.00011099,2]
[344809690,1733800239643,-500.0,0.00011099,2]
[344809692,1733800239652,-500.0,0.00011099,2]
[344809694,1733800239662,-500.0,0.00011099,2]
[344809696,1733800239671,-500.0,0.00011099,2]
[344809698,1733800239681,-184.6487777,0.00011099,2]
[344809700,1733800239690,-500.0,0.00011099,2]
[344809702,1733800239700,-500.0,0.00011099,2]
[344809704,1733800239709,-500.0,0.00011099,2]
[344809706,1733800239719,-202.01707812,0.00011099,2]
[344809708,1733800239729,-512.14,0.00011099,2]
[344809710,1733800239738,-500.0,0.00011099,2]
[344809712,1733800239747,-343.86388558,0.00011099,2]
[344809714,1733800239756,-170.0,0.00011099,2]
[344809716,1733800239766,-500.0,0.00011099,2]
[344809718,1733800239776,-500.0,0.00011099,2]
[344809720,1733800239785,-500.0,0.00011099,2]
[344809722,1733800239795,-500.0,0.00011099,2]
[344809724,1733800239804,-614.99438324,0.00011099,2]
[344809726,1733800239814,-500.0,0.00011099,2]
[344809728,1733800239823,-500.0,0.00011099,2]
[344809730,1733800239832,-500.0,0.00011099,2]
[344809732,1733800239843,-500.0,0.00011099,2]
[344809734,1733800239852,-500.0,0.00011099,2]
[344809736,1733800239865,-500.0,0.00011099,2]
[344809738,1733800239875,-500.0,0.00011099,2]
[344809740,1733800239884,-500.0,0.00011099,2]
[344809742,1733800239894,-500.0,0.00011099,2]
[344809744,1733800239904,-500.0,0.00011099,2]
[344809746,1733800239914,-500.0,0.00011099,2]
[344809748,1733800239924,-500.0,0.00011099,2]
[344809750,1733800239933,-500.0,0.00011099,2]
[344809752,1733800239943,-500.0,0.00011099,2]
[344809754,1733800239952,-500.0,0.00011099,2]
[344809756,1733800239961,-500.0,0.00011099,2]
[344809758,1733800239971,-500.0,0.00011099,2]
[344809760,1733800239981,-500.0,0.00011099,2]
[344809762,1733800239991,-500.0,0.00011099,2]
[344809764,1733800240000,-500.0,0.00011099,2]
[344809765,1733800240009,-500.0,0.00011099,2]
[344809766,1733800240019,-500.0,0.00011099,2]
[344809767,1733800240028,-500.0,0.00011099,2]
[344809768,1733800240037,-630.21519619,0.00011099,2]
[344809769,1733800240046,-500.0,0.00011099,2]
[344809770,1733800240056,-500.0,0.00011099,2]
[344809771,1733800240065,-500.0,0.00011099,2]
[344809772,1733800240074,-500.0,0.00011099,2]
[344809773,1733800240083,-500.0,0.00011099,2]
[344809774,1733800240092,-318.38841815,0.00011099,2]
[344809776,1733800240101,-500.0,0.00011099,2]
[344809778,1733800240115,-500.0,0.00011099,2]
[344809780,1733800240125,-500.0,0.00011099,2]
[344809782,1733800240136,-500.0,0.00011099,2]
[344809784,1733800240145,-500.0,0.00011099,2]
[344809786,1733800240155,-500.0,0.00011099,2]
[344809788,1733800240164,-500.0,0.00011099,2]
[344809790,1733800240174,-500.0,0.00011099,2]
[344809792,1733800240183,-500.0,0.00011099,2]
[344809794,1733800240193,-340.75,0.00011099,2]
[344809796,1733800240203,-565.26,0.00011099,2]
[344809798,1733800240212,-565.26,0.00011099,2]
[344809800,1733800240222,-565.26,0.00011099,2]
[344809802,1733800240232,-565.26,0.00011099,2]
[344809804,1733800240242,-565.26,0.00011099,2]
[344809806,1733800240252,-565.26,0.00011099,2]
[344809808,1733800240262,-565.26,0.00011099,2]
[344809810,1733800240271,-565.26,0.00011099,2]
[344809812,1733800240280,-565.26,0.00011099,2]
[344809814,1733800240289,-565.26,0.00011099,2]
[344809816,1733800240298,-565.26,0.00011099,2]
[344809818,1733800240307,-565.26,0.00011099,2]
[344809820,1733800240317,-565.26,0.00011099,2]
[344809822,1733800240326,-565.26,0.00011099,2]
[344809824,1733800240336,-565.26,0.00011099,2]
[344809826,1733800240346,-565.26,0.00011099,2]
[344809828,1733800240355,-565.26,0.00011099,2]
[344809830,1733800240367,-565.26,0.00011099,2]
[344809832,1733800240377,-565.26,0.00011099,2]
[344809834,1733800240386,-565.26,0.00011099,2]
[344809836,1733800240396,-565.26,0.00011099,2]
[344809838,1733800240406,-565.26,0.00011099,2]
[344809840,1733800240416,-565.26,0.00011099,2]
[344809842,1733800240426,-565.46,0.00011099,2]
[344809844,1733800240435,-1047.05,0.00011099,2]
[344809846,1733800240445,-1047.05,0.00011099,2]
[344809848,1733800240456,-1047.05,0.00011099,2]
[344809850,1733800240466,-1047.05,0.00011099,2]
[344809852,1733800240476,-1047.05,0.00011099,2]
[344809854,1733800240486,-1047.05,0.00011099,2]
[344809856,1733800240495,-1047.05,0.00011099,2]